[Event "Szansa Chess Open 2022"]
[Site "Warsaw"]
[Date "2022.09.18"]
[Round "9.20"]
[White "Krasenkova, Elena"]
[Black "Mulawa, Cyprian"]
[Result "0-1"]
[ECO "E71"]
[WhiteElo "2124"]
[BlackElo "2149"]
[Annotator "TA"]
[PlyCount "108"]
[EventDate "2022.09.17"]
[EventCountry "POL"]
[SourceTitle "playchess.com"]
[Source "ChessBase"]
[SourceQuality "1"]
[TimeControl "900+10"]

{[%evp 20,107,40,27,60,62,86,99,95,96,82,83,103,51,65,-64,-56,-48,-62,-86,-31,-25,12,0,0,0,0,0,0,0,15,20,31,49,95,0,66,28,135,35,158,13,231,14,14,0,0,0,29,-62,-62,-62,-39,-39,-39,-41,0,-1327,-1374,-1213,-1300,-1256,-1217,-1001,-960,-5047,-4866,-29980,-29982,-29981,-29983,-29983,-29984,-29984,-29985,-29985,-29986,-29985,-29986,-29986,-29987,-29987,-29988,-29988,-29989,-29993,-29994,-29998,-29999,-29999]} 1. d4 {[%emt 0:00:01] ChessBase II} Nf6 {[%emt 0:00:01]} 2. c4 {[%emt 0:00:02]} g6 {[%emt 0:00:01]} 3. Nc3 {[%emt 0:00:01]} Bg7 {[%emt 0:00:01]} 4. e4 {[%emt 0:00:01]} d6 {[%emt 0:00:01]} 5. h3 {[%emt 0:00:02]} O-O {[%emt 0:00:03]} 6. Nf3 {[%emt 0:00:02]} e5 {[%emt 0:00:02]} 7. d5 {[%emt 0:00:01]} a5 {[%emt 0:00:03]} 8. Bg5 {[%emt 0:00:02]} h6 {[%emt 0:00:02]} 9. Be3 {[%emt 0:00:01]} Na6 {[%emt 0:00:14]} 10. a3 {[%emt 0:00:34]} Nc5 {[%emt 0:00:14]} 11. Nd2 {[%emt 0:00:02]} c6 {[%emt 0:00:09] E90: King's Indian: Classical: Early deviations and 6 h3.} 12. b4 {[%emt 0:00:15]} axb4 {[%emt 0:00:02]} 13. axb4 {[%emt 0:00:01][%mdl 64] Discovered Attack} Rxa1 {[%emt 0:00:02] White is better.} 14. Qxa1 {[%emt 0:00:01]} Na6 {[%emt 0:00:01]} 15. Qa3 {[%emt 0:00:28]} Nh5 {[%emt 0:00:47] [#]} 16. dxc6 $146 {[%emt 0:00:27]} (16. b5 $16 Nc5 17. dxc6 (17. Bxc5 dxc5 18. dxc6 bxc6 $16)) ({Predecessor:} 16. b5 cxb5 17. Nxb5 f5 {1-0 (17) Marholev,D (2355)-Lagarde,M (2462) Sautron 2011 EXT 2016 [ChessBase II]}) 16... bxc6 $14 {[%emt 0:00:01]} 17. c5 {[%emt 0:05:30] [#]} (17. b5 $14 Nb8 18. Qa7) 17... dxc5 $1 $15 {[%emt 0:00:03]} 18. bxc5 {[%emt 0:00:03]} ({Wrong is} 18. Bxa6 $2 cxb4 19. Qa2 Bxa6 20. Qxa6 bxc3 $19) 18... Nc7 {[%emt 0:00:47]} 19. Nc4 {[%emt 0:00:32]} Be6 {[%emt 0:00:58]} (19... Ne6 $17 {Strongly threatening ...Nd4.} 20. Ne2 Bd7) 20. Nd6 {[%emt 0:00:24]} f5 {[%emt 0:00:44]} 21. Be2 {[%emt 0:00:25]} Nf4 {[%emt 0:00:20]} 22. Bxf4 {[%emt 0:00:46]} exf4 {[%emt 0:00:05]} 23. exf5 {[%emt 0:00:09]} Qa8 {[%emt 0:01:20]} 24. Qc1 {[%emt 0:01:54]} Bxf5 {[%emt 0:02:01] Hoping for ...Qa5.} 25. O-O {[%emt 0:00:12][%cal Oc1f4]} Be6 {[%emt 0:00:44]} 26. Bf3 {[%emt 0:00:19]} Qa5 {[%emt 0:00:28]} (26... Kh7 $14) 27. Nce4 {[%emt 0:00:27]} (27. Ne2 $16) 27... Nd5 {[%emt 0:00:04]} (27... Qb4 $11) 28. Qb1 {[%emt 0:00:31]} g5 {[%emt 0:01:03]} (28... Kh8 $11) 29. Qb7 {[%emt 0:00:02]} (29. Bg4 $1 $16 {[%cal Rg4e6]} Bxg4 30. hxg4) 29... Qc7 {[%emt 0:00:04] [#]} (29... Qa8 $1 $14) 30. Rb1 {[%emt 0:00:19]} ({White should play} 30. Qa6 $1 $16) 30... Bd4 $2 {[#]} (30... Qxb7 $11 {and Black stays safe.} 31. Rxb7 Bd4) 31. Qxc7 $2 {[%emt 0:01:01]} ({Only move:} 31. Qa6 $1 $18) 31... Nxc7 $11 {[%emt 0:00:31]} 32. Rb6 {[%emt 0:00:34]} Bd5 {[%emt 0:00:25]} 33. Bg4 {[%emt 0:01:31][%cal Od6f5]} Nb5 {[%emt 0:01:44]} 34. Rb7 {[%emt 0:00:16]} (34. Nxb5 $11 cxb5 35. Be6+ Bxe6 36. Rxe6) 34... Nxd6 $15 {[%emt 0:00:13]} 35. Nxd6 {[%emt 0:01:47]} Ra8 {[%emt 0:00:18] ...Ra1+ is the strong threat.} 36. Nf5 {[%emt 0:00:20][%csl LRd4,LRh6]} Ra1+ {[%emt 0:00:17]} 37. Kh2 {[%emt 0:00:01]} Bxf2 {[%emt 0:00:07] This bishop pair is nice.} (37... Bxc5 $5 {[%cal Rg8h8]} 38. Ne7+ Kf8 39. Ng6+ Kg8 40. Ne7+ Bxe7 41. Rxe7 Kf8 $17) 38. Nxh6+ $2 {[%emt 0:00:03][%mdl 8192] Black converts the advantage convincingly.} (38. Ne7+ $11 Kf8 39. Ng6+ Kg8 40. Ne7+ Kh8 41. Ng6+ Kg8 42. Ne7+) 38... Kh8 $19 {[%emt 0:00:13][%csl Gf4][%cal Rf2g3]} 39. Nf5 {[%emt 0:00:23] Inhibits Bg3+.} Bg1+ {[%emt 0:00:21]} 40. Kh1 {[%emt 0:00:04]} Bxc5+ 41. Kh2 Ra2 {[%emt 0:00:36]} 42. Rb8+ {[%emt 0:00:15]} Kh7 {[%emt 0:00:03]} 43. Rb7+ {[%emt 0:00:01]} Kg6 {[%emt 0:00:02] Black mates.} 44. h4 {[%emt 0:00:40]} Rxg2+ {[%emt 0:01:30]} 45. Kh3 {[%emt 0:00:00]} Rg1 {[%emt 0:00:15][%cal Rg1h1]} 46. Rg7+ {[%emt 0:00:41]} Kf6 {[%emt 0:00:10][%cal Rg1h1]} 47. hxg5+ {[%emt 0:00:11]} Ke5 {[%emt 0:00:04][%cal Rg1h1]} 48. Kh4 {[%emt 0:00:57]} Rh1+ {[%emt 0:00:10]} 49. Bh3 {[%emt 0:00:01]} Bg2 {[%emt 0:00:01]} 50. Kh5 {[%emt 0:00:24]} Bxh3 {[%emt 0:00:18][%cal Rh3f5]} 51. Nh4 {[%emt 0:00:16]} Be6 {[%emt 0:00:24]} 52. g6 {[%emt 0:00:19]} Bf2 {[%emt 0:00:01]} 53. Kg5 {[%emt 0:00:01]} Bxh4+ {[%emt 0:00:02]} 54. Kh6 {[%emt 0:00:05]} Bf6# {[%emt 0:00:02] Weighted Error Value: White=0.60/Black=0.27 (precise)} 0-1

[Event "Szansa Chess Open 2022"]
[Site "Warsaw"]
[Date "2022.09.18"]
[Round "9.21"]
[White "Adamski, Adam"]
[Black "Lewandowski, Rafal"]
[Result "1-0"]
[ECO "B20"]
[WhiteElo "1886"]
[BlackElo "2183"]
[Annotator "TA"]
[PlyCount "105"]
[EventDate "2022.09.17"]
[EventCountry "POL"]
[SourceTitle "playchess.com"]
[Source "ChessBase"]
[SourceQuality "1"]
[TimeControl "900+10"]

{[%evp 9,105,0,13,15,14,22,62,60,58,27,25,20,74,66,71,35,90,69,78,-81,-69,-104,-91,-91,-97,-96,-79,-79,-12,-10,34,29,46,-88,-73,-97,-86,-83,-36,-35,0,0,0,0,0,-12,0,0,369,368,335,329,649,648,648,640,640,647,666,637,671,649,801,777,975,961,1360,877,981,969,938,758,1940,1938,1924,1871,1685,1675,1831,1652,4829,4837,29959,4829,29955,29959,29978,29979,29978,29979,29979,29980,29985,29986,29986,29987,29988,4137]} 1. e4 {[%emt 0:00:02]} c5 {[%emt 0:00:01]} 2. b3 {[%emt 0:00:01]} e6 {[%emt 0:00:10]} 3. Bb2 {[%emt 0:00:04]} d5 {[%emt 0:00:02]} 4. exd5 {[%emt 0:00:08]} exd5 {[%emt 0:00:08]} 5. Bb5+ {[%emt 0:00:02]} Nc6 {[%emt 0:00:18]} 6. Qe2+ {[%emt 0:00:03] B20: Sicilian: Unusual White 2nd moves.} Be6 {[%emt 0:00:17]} 7. Nf3 {[%emt 0:00:56]} a6 {[%emt 0:01:01]} 8. Bxc6+ {[%emt 0:00:04] White is slightly better.} bxc6 {[%emt 0:00:02]} 9. d4 {[%emt 0:01:30]} Nf6 {[%emt 0:03:52]} 10. O-O {[%emt 0:00:42]} h6 {[%emt 0:01:08] Against Ng5} (10... Be7 $11 {remains equal.}) 11. Ne5 {[%emt 0:00:43]} Qc8 {[%emt 0:01:00] [#]} 12. Re1 $146 {[%emt 0:01:16] White is more active.} ({Predecessor:} 12. f4 Be7 13. Nd2 Ra7 14. Rac1 cxd4 15. Bxd4 c5 16. Bb2 O-O 17. c4 d4 18. Ne4 {0-1 (29) Kaczmarek,A (1821)-Bartosik,P (1986) Kowalewo Pomorskie 2009}) 12... Bd6 {[%emt 0:01:12]} ({Black should try} 12... cxd4 $14 13. c3 d3 14. Nxd3 Be7) 13. dxc5 {[%emt 0:03:08]} Bxc5 {[%emt 0:00:17]} 14. Ng6 $2 {[%emt 0:00:39]} fxg6 $17 {[%emt 0:00:45]} 15. Qxe6+ {[%emt 0:00:01]} Qxe6 {[%emt 0:00:06]} 16. Rxe6+ {[%emt 0:00:02]} Kd7 {[%emt 0:00:01]} 17. Re2 {[%emt 0:01:23]} Rae8 {[%emt 0:00:42]} 18. Nc3 {[%emt 0:00:25] [#]} Rhf8 {[%emt 0:03:27]} ({Better is} 18... Ng4 $1 $17 {[%cal Rg4f2] And now ...Nxf2 would win.} 19. Rf1 Rhf8 20. Rxe8 Rxe8) 19. Rxe8 $11 {[%emt 0:00:26]} (19. Rae1 {seems wilder.} Ng4 20. Rxe8 Bxf2+ 21. Kh1) 19... Kxe8 {[%emt 0:00:19]} 20. Na4 {[%emt 0:00:28]} Ba7 {[%emt 0:00:06]} 21. Kf1 {[%emt 0:01:44] [#]} (21. Ba3 $14) 21... Ng4 $1 $17 {[%emt 0:00:18][%csl LRf2,LRh2]} 22. f3 {[%emt 0:00:02]} (22. Re1+ Kd7 23. f3 Ne3+ 24. Rxe3 Bxe3 25. Bxg7 Re8 $17) 22... Ne3+ {[%emt 0:00:19]} ({Don't play} 22... Nxh2+ $6 23. Ke2 $11) 23. Ke2 {[%emt 0:00:11]} Rf7 {[%emt 0:00:24]} ({Much less strong is} 23... Nxc2 24. Rc1 Nd4+ 25. Bxd4 Bxd4 26. Kd3 $16 (26. Rxc6 Rf6 $16)) (23... Nxg2 $17 {Strongly threatening ...Kf7.} 24. Bxg7 Rf5) 24. g3 $1 $15 {[%emt 0:00:56]} Nxc2 {[%emt 0:00:39]} 25. Rc1 {[%emt 0:00:02]} Re7+ {[%emt 0:00:26]} 26. Kd1 $1 {[%emt 0:00:19]} Ne3+ {[%emt 0:00:08]} 27. Kd2 {[%emt 0:00:16]} Kd7 {[%emt 0:00:41]} 28. Ba3 {[%emt 0:00:25]} Rf7 {[%emt 0:00:17][%mdl 8192] White stays focused until the end.} (28... Nf5 $11 {and Black has nothing to worry.}) 29. Bc5 $18 {[%emt 0:00:56]} Rxf3 {[%emt 0:01:29]} 30. Bxa7 {[%emt 0:00:06]} Nf1+ {[%emt 0:00:03]} (30... Ng4 31. Nc5+ Kc7 32. Ne6+ Kd7) 31. Ke2 {[%emt 0:00:08]} Nxh2 {[%emt 0:00:08]} 32. Rh1 {[%emt 0:00:03]} Rxg3 {[%emt 0:00:04]} 33. Rxh2 {[%emt 0:00:02]} h5 {[%emt 0:00:06]} 34. Bd4 {[%emt 0:00:07]} Ke6 {[%emt 0:00:14]} 35. Bxg7 {[%emt 0:00:02]} Kf5 {[%emt 0:00:03]} 36. Nc5 {[%emt 0:00:24]} a5 {[%emt 0:00:12]} 37. Rf2+ Kg4 {[%emt 0:00:04]} 38. Nd3 {[%emt 0:01:28]} g5 {[%emt 0:00:22]} 39. Be5 {[%emt 0:00:54]} Rg1 {[%emt 0:00:04]} 40. Ne1 {[%emt 0:00:05]} h4 {[%emt 0:00:11]} 41. Rg2+ {[%emt 0:00:05]} Rxg2+ {[%emt 0:00:02]} 42. Nxg2 {[%emt 0:00:01]} Kf5 {[%emt 0:00:01]} 43. Bc7 {[%emt 0:00:04]} Ke4 {[%emt 0:00:10]} 44. Kf2 {[%emt 0:01:01]} d4 {[%emt 0:00:11]} 45. Bxa5 {[%emt 0:00:02]} Kd3 {[%emt 0:00:28]} 46. Ne1+ {[%emt 0:00:14]} Ke4 {[%emt 0:00:08]} 47. Nf3 {[%emt 0:00:07] White mates.} Kd3 {[%emt 0:00:06]} 48. Nxg5 {[%emt 0:00:03]} Kc2 {[%emt 0:00:01]} 49. Ke2 {[%emt 0:00:20]} Kb2 {[%emt 0:00:01]} 50. Kd3 {[%emt 0:00:03]} Kxa2 {[%emt 0:00:02]} 51. b4 {[%emt 0:00:01]} Kb3 {[%emt 0:00:04]} 52. Kxd4 {[%emt 0:00:02]} Ka4 {[%emt 0:00:23]} 53. Ke4 {Weighted Error Value: White=0.22 (precise) /Black=0.54} (53. Kc5 $142 Kb3 54. Kxc6 h3 55. Nxh3 Ka3 56. Kc5 Kb2 57. b5 Kc1 58. b6) 1-0

[Event "Szansa Chess Open 2022"]
[Site "Warsaw"]
[Date "2022.09.18"]
[Round "9.22"]
[White "Klim, Filip"]
[Black "Rudzinska, Michalina"]
[Result "1-0"]
[ECO "B15"]
[WhiteElo "2011"]
[BlackElo "2289"]
[Annotator "ChessBase"]
[PlyCount "110"]
[EventDate "2022.09.17"]
[EventCountry "POL"]
[SourceTitle "playchess.com"]
[Source "ChessBase"]
[SourceQuality "1"]
[TimeControl "900+10"]

1. e4 {[%emt 0:00:01]} c6 {[%emt 0:00:01]} 2. d4 {[%emt 0:00:02]} d5 {[%emt 0:00:02]} 3. Nc3 {[%emt 0:00:01]} dxe4 {[%emt 0:00:02]} 4. Nxe4 {[%emt 0:00:02]} Nf6 {[%emt 0:00:02]} 5. Nxf6+ {[%emt 0:00:02]} exf6 {[%emt 0:00:02]} 6. c3 {[%emt 0:00:02]} Bd6 {[%emt 0:00:02]} 7. Bd3 {[%emt 0:00:02]} O-O {[%emt 0:00:03]} 8. Qc2 {[%emt 0:00:01]} Re8+ {[%emt 0:00:02]} 9. Ne2 {[%emt 0:00:02]} h5 {[%emt 0:00:03]} 10. O-O {[%emt 0:00:08]} h4 {[%emt 0:00:04]} 11. Nf4 {[%emt 0:00:21]} Nd7 {[%emt 0:00:25]} 12. Qd1 {[%emt 0:01:14]} Nf8 {[%emt 0:02:11]} 13. Qh5 {[%emt 0:00:44]} Qc7 {[%emt 0:00:14]} 14. g3 {[%emt 0:01:00]} g5 {[%emt 0:00:29]} 15. Ng2 {[%emt 0:02:26]} Qd7 {[%emt 0:01:26]} 16. Bxg5 {[%emt 0:01:41]} fxg5 {[%emt 0:00:14]} 17. Qxg5+ {[%emt 0:00:03]} Kh8 {[%emt 0:00:03]} 18. Qf6+ {[%emt 0:03:39]} Kg8 {[%emt 0:00:02]} 19. Nxh4 {[%emt 0:01:59]} Be7 {[%emt 0:01:07]} 20. Qh6 {[%emt 0:00:33]} Bxh4 {[%emt 0:00:05]} 21. Qxh4 {[%emt 0:00:03]} Qg4 {[%emt 0:00:22]} 22. Qxg4+ {[%emt 0:01:02]} Bxg4 {[%emt 0:00:02]} 23. f3 {[%emt 0:00:07]} Bh3 {[%emt 0:00:33]} 24. Rfe1 {[%emt 0:00:03]} Ne6 {[%emt 0:01:43]} 25. Kf2 {[%emt 0:00:13]} Kg7 {[%emt 0:00:19]} 26. Re5 {[%emt 0:00:58]} Rh8 {[%emt 0:01:32]} 27. Rae1 {[%emt 0:01:22]} Rad8 {[%emt 0:00:06]} 28. Bc4 {[%emt 0:00:16]} b5 {[%emt 0:01:59]} 29. Bb3 {[%emt 0:00:03]} Kg6 {[%emt 0:00:15]} 30. g4 {[%emt 0:00:30]} Nf4 {[%emt 0:00:15]} 31. Kg3 {[%emt 0:00:21]} Nd5 {[%emt 0:01:17]} 32. Rh5 {[%emt 0:00:32]} Rxh5 {[%emt 0:00:27]} 33. gxh5+ {[%emt 0:00:01]} Kxh5 {[%emt 0:00:12]} 34. Kxh3 {[%emt 0:00:03]} Nf4+ {[%emt 0:00:05]} 35. Kg3 {[%emt 0:00:01]} Nd3 {[%emt 0:00:03]} 36. Bxf7+ {[%emt 0:00:14]} Kg5 {[%emt 0:00:18]} 37. Re6 {[%emt 0:00:31]} Rf8 {[%emt 0:00:21]} 38. h4+ {[%emt 0:00:37]} Kf5 {[%emt 0:00:09]} 39. Re7 {[%emt 0:00:15]} Kf6 {[%emt 0:00:09]} 40. Re3 {[%emt 0:00:02]} Nxb2 {[%emt 0:00:08]} 41. Bb3 {[%emt 0:00:02]} Nc4 {[%emt 0:00:43]} 42. Bxc4 {[%emt 0:00:02]} bxc4 {[%emt 0:00:02]} 43. Re5 {[%emt 0:00:05]} Rg8+ {[%emt 0:00:08]} 44. Rg5 {[%emt 0:00:08]} Rb8 {[%emt 0:00:22]} 45. Rc5 {[%emt 0:00:02]} Rb2 {[%emt 0:00:03]} 46. Rxc6+ {[%emt 0:00:03]} Kf5 {[%emt 0:00:02]} 47. Rc5+ {[%emt 0:00:01]} Kf6 {[%emt 0:00:03]} 48. Ra5 {[%emt 0:00:12]} Rc2 {[%emt 0:00:02]} 49. Ra3 {[%emt 0:00:03]} Kf5 {[%emt 0:00:11]} 50. Ra5+ {[%emt 0:00:25]} Kf6 {[%emt 0:00:03]} 51. Rxa7 {[%emt 0:00:03]} Rxc3 {[%emt 0:00:01]} 52. Rc7 {[%emt 0:00:01]} Ke6 {[%emt 0:00:19]} 53. Rc5 {[%emt 0:00:02]} Rc1 {[%emt 0:00:05]} 54. Kf4 {[%emt 0:00:03]} c3 {[%emt 0:00:04]} 55. Ke3 {[%emt 0:00:03]} Kd6 {[%emt 0:00:05]} 1-0

[Event "Szansa Chess Open 2022"]
[Site "Warsaw"]
[Date "2022.09.18"]
[Round "9.23"]
[White "Staniak, Mariusz"]
[Black "Kutowski, Marcel"]
[Result "0-1"]
[ECO "B52"]
[WhiteElo "1737"]
[BlackElo "2046"]
[Annotator "TA"]
[PlyCount "70"]
[EventDate "2022.09.17"]
[EventCountry "POL"]
[SourceTitle "playchess.com"]
[Source "ChessBase"]
[SourceQuality "1"]
[TimeControl "900+10"]

{[%evp 9,70,4,8,8,12,0,16,0,18,0,0,-27,-13,-24,-20,-14,-11,-17,0,-18,0,-20,-16,0,10,0,24,-29,-14,-13,-19,-488,-468,-471,-262,-269,-268,-260,-264,-268,-252,-276,-275,-331,-300,-320,-303,-308,-150,-295,-208,-814,-705,-2643,-2087,-29993,-29994,-29994,-29989,-29989,-29988,-29988,-29989]} 1. e4 {[%emt 0:00:03]} c5 {[%emt 0:00:01]} 2. Nf3 {[%emt 0:00:01]} d6 {[%emt 0:00:01]} 3. Bb5+ {[%emt 0:00:04]} Bd7 {[%emt 0:00:02]} 4. a4 {[%emt 0:00:00]} Nf6 {[%emt 0:00:02]} 5. Nc3 {[%emt 0:00:13]} g6 {[%emt 0:00:02]} 6. O-O {[%emt 0:00:07] B52: Sicilian: Moscow Variation with 3...Bd7.} Bg7 {[%emt 0:00:01]} 7. d4 {[%emt 0:00:19]} cxd4 {[%emt 0:00:03]} 8. Nxd4 {[%emt 0:00:01] The position is equal.} O-O {[%emt 0:00:04]} 9. Re1 {[%emt 0:00:12]} Nc6 {[%emt 0:00:15]} 10. Nxc6 {[%emt 0:00:06]} bxc6 {[%emt 0:00:15] [#]} 11. Bf1 $146 {[%emt 0:00:10]} ({Predecessor:} 11. Bc4 Qa5 12. Be3 Rab8 13. Rb1 c5 14. Bg5 h6 15. Bxf6 Bxf6 16. f4 Bd4+ 17. Kh1 Bxc3 18. bxc3 Qxc3 {0-1 (30) Gonzalez,J-Sanchez Quintero,R (2245) Asturias 1998}) 11... Rb8 {[%emt 0:00:17]} 12. Rb1 {[%emt 0:00:39]} Qc7 {[%emt 0:00:36]} (12... Ng4 {with more complications.} 13. Bf4 Bxc3 14. bxc3 Rxb1 15. Qxb1 Qc7) 13. Bd2 {[%emt 0:00:18]} e5 {[%emt 0:00:52]} 14. b3 {[%emt 0:00:27]} d5 {[%emt 0:00:20]} 15. exd5 {[%emt 0:00:09]} cxd5 {[%emt 0:00:03]} 16. Nb5 {[%emt 0:00:15]} Bxb5 {[%emt 0:00:30]} 17. Bxb5 {[%emt 0:00:14]} Rfd8 {[%emt 0:00:58]} 18. Bg5 {[%emt 0:02:24]} (18. c4 $142) 18... e4 {[%emt 0:00:36]} 19. Qc1 {[%emt 0:01:46]} Ng4 {[%emt 0:02:37]} 20. Bxd8 $4 {[%emt 0:03:21][%mdl 8192] Now White is beyond hope.} (20. Qf4 $11 {and White has nothing to worry.} Qxf4 21. Bxf4) 20... Qxh2+ $19 {[%emt 0:00:08]} (20... Rxd8 21. g3 $11) 21. Kf1 {[%emt 0:00:01]} Rxd8 {[%emt 0:00:26]} (21... Rc8 $142 22. Ba5 (22. Bd7 $2 Qh1+ 23. Ke2 Qxg2 $19) 22... Qh1+ 23. Ke2 Qxg2) 22. Qg5 {[%emt 0:00:32]} Nf6 {[%emt 0:00:28][%cal Bg4f6,Bf6g4,Bg4h2][%mdl 32]} 23. Qg3 {[%emt 0:00:39]} Qh1+ {[%emt 0:00:35]} 24. Ke2 {[%emt 0:00:03]} Qh5+ {[%emt 0:00:01]} 25. Kf1 {[%emt 0:00:09] [#]} Ng4 $1 {[%emt 0:01:02]} 26. f3 {[%emt 0:01:45]} Nh2+ {[%emt 0:02:31]} 27. Ke2 {[%emt 0:00:30]} Be5 {[%emt 0:00:19]} 28. Qf2 {[%emt 0:00:58]} d4 {[%emt 0:00:20]} (28... Rd6 $19 {and Black stays clearly on top.} 29. Kd1 a6) 29. Rh1 {[%emt 0:01:48]} (29. Kd1 $17 {was the only defense.} exf3 30. gxf3) 29... Qf5 {[%emt 0:01:25] Hoping for ...d3+. Dancing on a razor blade.} 30. Rbd1 {[%emt 0:00:49] Prevents d3+.} ({Don't blunder} 30. Qh4 $2 exf3+ 31. Kd2 {[#]} (31. Ke1 {is a self mate.} Qxc2 32. gxf3 Nxf3+ 33. Kf1 Nxh4 34. Rxh4 Qxb1+ 35. Kg2 d3 36. Re4 d2 37. Rxe5 d1=Q 38. Kg3 Qd4 39. Rg5 Qbg1+ 40. Kh3 Qde3+ 41. Kh4 Qgxg5#) 31... fxg2 $1 32. Qxd8+ Kg7 33. Rxh2 Bf4+ 34. Ke2 Qe4+ 35. Kf2 Bxh2 $19) (30. Rxh2 exf3+ 31. Kd1 Bxh2 32. Qxf3) 30... Rc8 {[%emt 0:03:17] ( -> ...exf3+)} 31. Bc4 {[%emt 0:00:46]} e3 {[%emt 0:00:07][%mdl 64] Discovered Attack} 32. Qh4 {[%emt 0:00:25]} Qxc2+ {[%emt 0:00:05] Black mates.} 33. Ke1 {[%emt 0:00:04]} Qxg2 {[%emt 0:00:06][%cal Rh2f3]} 34. Rxh2 {[%emt 0:01:16]} Bg3+ {[%emt 0:00:05]} ({Not} 34... Qxh2 35. Qxh2 Bxh2 36. Rxd4 $17) 35. Qxg3 {[%emt 0:00:02]} Qxg3+ {[%emt 0:00:02] Weighted Error Value: White=0.95/Black=0.29 (precise)} 0-1

[Event "Szansa Chess Open 2022"]
[Site "Warsaw"]
[Date "2022.09.18"]
[Round "9.24"]
[White "Jarocka, Liwia"]
[Black "Rylski, Tadeusz"]
[Result "1/2-1/2"]
[ECO "D45"]
[WhiteElo "2131"]
[BlackElo "1733"]
[Annotator "TA"]
[PlyCount "108"]
[EventDate "2022.09.17"]
[EventCountry "POL"]
[SourceTitle "playchess.com"]
[Source "ChessBase"]
[SourceQuality "1"]
[TimeControl "900+10"]

{[%evp 13,108,19,23,1,23,15,60,37,129,64,209,220,222,215,206,185,196,124,125,80,123,102,121,62,62,4,55,28,32,33,22,26,33,17,21,-29,94,97,118,112,108,54,115,112,116,114,120,121,126,125,174,176,175,143,157,138,153,123,122,100,474,474,462,460,554,506,380,362,377,376,372,354,267,8,8,8,8,8,8,8,8,8,8,8,8,8,8,8,8,8,8,8,8,8,8,8,8]} 1. d4 {[%emt 0:00:00]} d5 {[%emt 0:00:01]} 2. Nf3 {[%emt 0:00:02]} Nf6 {[%emt 0:00:02]} 3. c4 {[%emt 0:00:02]} c6 {[%emt 0:00:01]} 4. e3 {[%emt 0:00:03]} e6 {[%emt 0:00:02]} 5. Nc3 {[%emt 0:00:02]} Nbd7 {[%emt 0:00:08]} 6. Be2 {[%emt 0:00:01]} dxc4 {[%emt 0:00:07]} 7. a4 $1 {[%emt 0:00:01][%mdl 4] is more profitable than 7.Bxc4 at the moment.} Bb4 {[%emt 0:00:28]} 8. Bxc4 {[%emt 0:00:07] D45: Semi-Slav: 5 e3.} O-O {[%emt 0:00:19]} 9. O-O {[%emt 0:00:02] [#]} Nb6 $146 {[%emt 0:00:24]} ({Predecessor:} 9... Qe7 10. Qe2 e5 11. Qc2 h6 12. Nh4 Qd8 13. Rd1 exd4 14. exd4 Nb6 15. Ba2 Nbd5 16. h3 {0-1 (51) Matlakov,M (2674)-Kozak,A (2458) Chess.com INT 2022}) 10. Bd3 {[%emt 0:00:08] White is slightly better.} Re8 {[%emt 0:01:02]} (10... Nbd7 $14) 11. Qc2 {[%emt 0:00:23]} (11. e4 $1 $16) 11... Bd6 {[%emt 0:00:47]} (11... Nbd7 $14) 12. e4 $1 $18 {[%emt 0:00:11]} e5 {[%emt 0:01:01]} 13. dxe5 {[%emt 0:00:23]} Bxe5 {[%emt 0:00:03]} 14. Nxe5 {[%emt 0:00:01]} Rxe5 {[%emt 0:00:01]} 15. Bf4 {[%emt 0:01:12]} (15. f4 $18 Rh5 16. f5) 15... Re8 $16 {[%emt 0:00:49]} 16. Rfe1 {[%emt 0:00:47]} h6 {[%emt 0:01:23]} 17. Rad1 {[%emt 0:00:45]} Qe7 {[%emt 0:00:18]} 18. h3 {[%emt 0:03:09] Prevents Bg4.} (18. Bf1 $16) 18... Be6 $14 {[%emt 0:00:17]} 19. Qe2 {[%emt 0:01:13]} (19. a5 $14 Nbd7 20. a6) 19... Rad8 {[%emt 0:00:14]} ({Black should try} 19... Qb4 $11) 20. e5 {[%emt 0:01:29]} (20. a5 $5 {[%cal Ra5b6]} Nbd7 21. Bc2 $14) 20... Nfd5 {[%emt 0:00:09]} 21. Qe4 {[%emt 0:00:28] Qh7+ would kill now.} f5 {[%emt 0:02:21]} 22. exf6 $1 {[%emt 0:00:02]} Nxf6 {[%emt 0:00:05]} 23. Qg6 $36 {[%emt 0:00:13][%mdl 2048] aiming for Bxh6. White is pushing.} Qf7 $1 {[%emt 0:00:52]} 24. Bxh6 {[%emt 0:04:54]} (24. Be3 $142) 24... Qxg6 {[%emt 0:00:33]} (24... Bb3 $1 $11 {remains equal.} 25. Rxe8+ Rxe8) 25. Bxg6 $16 {[%emt 0:00:02] This bishop pair is nice.} Rxd1 {[%emt 0:01:51]} 26. Nxd1 {[%emt 0:00:03]} Bf7 {[%emt 0:01:36]} 27. Rxe8+ {[%emt 0:00:17]} ({White should play} 27. Bxf7+ $16 Kxf7 28. Rxe8 Nxe8 29. Be3) 27... Nxe8 {[%emt 0:00:14]} ({Better is} 27... Bxe8 $14 28. Bxe8 gxh6) 28. Bxf7+ {[%emt 0:00:04]} Kxf7 {[%emt 0:00:01][%mdl 4096] Endgame [#] KBN-KNN} 29. Be3 {[%emt 0:00:02]} Nd6 {[%emt 0:01:07]} 30. b3 {[%emt 0:00:18]} Nbc8 {[%emt 0:00:44]} 31. Kf1 {[%emt 0:00:09]} a6 {[%emt 0:00:01]} (31... b6 $16 {was called for.} 32. Ke2 Ne7) 32. Ke2 $18 {[%emt 0:00:10]} Ne7 {[%emt 0:00:14]} 33. Bc5 {[%emt 0:01:07]} Ke6 {[%emt 0:00:04]} 34. Ne3 {[%emt 0:00:48]} b5 {[%emt 0:00:19]} 35. axb5 {[%emt 0:00:05] White is more active.} cxb5 {[%emt 0:00:04]} 36. Kd3 {[%emt 0:00:18]} Nef5 $2 {[%emt 0:01:21][%mdl 8192]} (36... a5 $16 {is more resistant.} 37. f4 Nc6) 37. Nxf5 {[%emt 0:00:13]} Nxf5 {[%emt 0:00:02] KB-KN} 38. g4 {[%emt 0:00:08]} Nh4 {[%emt 0:00:21]} 39. f4 {[%emt 0:00:06] And now Bf2 would win.} Kd5 {[%emt 0:00:52]} 40. Bf2 {[%emt 0:00:48]} Ng2 {[%emt 0:00:24]} 41. Bg3 {[%emt 0:00:04]} a5 {[%emt 0:00:10]} 42. f5 {[%emt 0:00:03] Strongly threatening g5.} a4 {[%emt 0:00:07] [#]} 43. bxa4 {[%emt 0:00:04]} (43. b4 $1 $18 a3 44. Kc3) 43... bxa4 $11 {[%emt 0:00:01] The position is equal.} 44. Kc3 {[%emt 0:01:01]} Ke4 {[%emt 0:00:16]} 45. Kb4 {[%emt 0:00:07]} Ne3 {[%emt 0:00:59]} 46. Bd6 {[%emt 0:00:43]} Kf3 {[%emt 0:00:11]} 47. Bf8 {[%emt 0:00:06]} Nxg4 {[%emt 0:00:12]} 48. Bxg7 {[%emt 0:00:05]} Nf2 {[%emt 0:00:13]} 49. f6 {[%emt 0:00:04]} Nd3+ {[%emt 0:00:01]} 50. Kxa4 {[%emt 0:00:04] White threatens f7 and mate.} Ne5 {[%emt 0:00:01]} 51. Kb5 {[%emt 0:00:06] With the idea Kc5.} Kg3 {[%emt 0:00:02]} 52. Kc5 {[%emt 0:00:01]} Nd7+ {[%emt 0:00:02]} 53. Kd6 {[%emt 0:00:02]} Nxf6 {[%emt 0:00:01]} 54. Bxf6 {[%emt 0:00:01] Threatening mate with h4.} Kxh3 {[%emt 0:00:02] White really could win this.  Weighted Error Value: White=0.23 (precise) /Black=0.39} 1/2-1/2